Cogmind - Beta 14 @@@ ROGUE MODE // 2024.08.10 @ 12:10:40 Player: Empythree Result: Destroyed by H-61 Shepherd with Heavy Assault Cannon Performance ------------- Evolutions (2) 1000 Regions Visited (4) 800 Robots Destroyed (33) 165 Value Destroyed (869) 869 Prototype IDs (2) 40 Alien Tech Used (0) 0 Bonus (0) 0 TOTAL SCORE: 2874 Bonus ------- None Cogmind --------- Core Integrity 0/550 Matter 400/400 Energy 75/100 System Corruption 5% Temperature Cool (4) Movement Walking (270) Ox2 Location -8/Materials Parts ------- > --- POWER (1) -------- (None) > --- PROPULSION (3) --- VSS Leg > --- UTILITY (5) ------ Large Storage Unit Medium Matter Pod Improved Trap Extractor (0/6) > --- WEAPON (2) ------- Particle Gun Scythe > --- INVENTORY (15) --- Light Nuclear Core Light Nuclear Core Large Battery (200) Field Recycling Unit (0) Particle Gun Peak State ------------ > --- POWER ------------ Light Deuterium Engine > --- PROPULSION ------- Improved Treads Carbon-fiber Leg Carbon-fiber Leg > --- UTILITY ---------- Large Storage Unit Structural Scanner Improved Trap Extractor > --- WEAPON ----------- Particle Cannon Scythe > --- INVENTORY -------- Improved Ion Engine Improved Ion Engine Aluminum Leg Large Battery Large Battery Field Recycling Unit Heavy Mace [Rating: 23] Favorites ----------- Power Light Ion Engine Engine Light Ion Engine Propulsion Light Treads Treads Light Treads Leg Carbon-fiber Leg Wheel Wheel Utility Small Storage Unit Device Structural Scanner Storage Small Storage Unit Processor Terrain Scan Processor Protection Hardened Light Armor Plating Weapon Scythe Energy Gun Particle Gun Energy Cannon Ion Cannon Ballistic Gun Assault Rifle Impact Weapon Maul Slashing Weapon Scythe Build | -11 -10 -10 -9 -8 ------- Run | Yrd Mat Min Mat Mat Slots Evolved 4 | . . . 2 2 Power . | . . . . . Propulsion 1 | . . . . 1 Utility 3 | . . . 2 1 Weapon . | . . . . . Parts Attached 58 | 4 10 5 19 20 Power 5 | 1 1 1 1 1 Engine 5 | 1 1 1 1 1 Core . | . . . . . Reactor . | . . . . . Propulsion 16 | 2 2 . 5 7 Treads 10 | . 2 . 5 3 Leg 4 | . . . . 4 Wheel 2 | 2 . . . . Hover . | . . . . . Flight . | . . . . . Utility 22 | 1 1 2 11 7 Device 7 | . . 2 3 2 Storage 7 | 1 . . 2 4 Processor 2 | . 1 . 1 . Hackware . | . . . . . Protection 6 | . . . 5 1 Artifact . | . . . . . Weapon 15 | . 6 2 2 5 Energy Gun 3 | . 1 . . 2 Energy Cannon 4 | . 1 1 1 1 Ballistic Gun 2 | . 1 . . 1 Ballistic Cannon . | . . . . . Launcher . | . . . . . Special Weapon . | . . . . . Impact Weapon 5 | . 3 . 1 1 Slashing Weapon 1 | . . 1 . . Piercing Weapon . | . . . . . Special Melee Weapon . | . . . . . Unidentified Prototypes . | . . . . . Corrupted Parts 1 | . . . . 1 System Corruption 5 | . . . . 5 Parts Lost 22 | . 4 . 3 15 Power 3 | . 1 . 1 1 Propulsion 7 | . 1 . . 6 Utility 7 | . . . 1 6 Weapon 5 | . 2 . 1 2 Highest Loss Streak 5 | . 4 . 1 5 To Critical Strikes . | . . . . . Average Slot Usage (%) 90 | . 73 99 99 78 Engine 10 | . 8 14 10 7 Treads 17 | . 10 28 22 7 Leg 2 | . . . . 8 Wheel 1 | . 14 . . . Device 10 | . . 8 12 15 Storage 13 | . 14 14 11 15 Processor 2 | . 3 5 1 . Protection 8 | . . . 18 5 Energy Gun 1 | . 3 . . 3 Energy Cannon 7 | . 3 14 8 3 Impact Weapon 3 | . 9 4 2 . Slashing Weapon 8 | . . 8 11 9 Peak Build Rating 23 | 4 11 14 20 23 Average Rating 15 | 2 6 11 18 20 On Entrance 9 | . 4 10 12 19 Naked Turns . | . . . . . Heaviest Build 46 | 8 15 17 43 46 Greatest Support 60 | 20 40 40 43 60 Greatest Overweight (x) 10 | . 1 . . 10 Average Overweight (x) . | . . . . 1 Largest Inventory Capacity 15 | 8 8 8 15 15 Average Capacity 10 | 6 8 8 9 14 Most Carried 10 | 5 7 8 10 9 Average Carried 7 | 4 4 6 8 6 Final Capacity 15 | 8 8 8 10 15 Final Carried 9 | 5 6 6 9 5 Class Distribution -------------------- 81% | Mutant 18% | Scavenger-Mutant Dominant Class ---------------- Mutant | -10/Materials Mutant | -10/Mines Mutant | -9/Materials Scavenger-Mutant | -8/Materials Resources | -11 -10 -10 -9 -8 ----------- Run | Yrd Mat Min Mat Mat Matter Collected 795 | 199 85 119 176 216 Remotely . | . . . . . Salvage Created 1103 | . 85 103 503 412 Parts 62 | . 3 6 28 25 Haulers Intercepted . | . . . . . Recyclers Shooed . | . . . . . Parts Field Recycled . | . . . . . Retrieved Matter . | . . . . . Parts Self-Destructed . | . . . . . Prevented . | . . . . . Kills | -11 -10 -10 -9 -8 ------- Run | Yrd Mat Min Mat Mat Combat Hostiles Destroyed 29 | . 2 2 17 8 Melee 24 | . 2 2 12 8 Cannons 3 | . . . 3 . Classes Destroyed 8 | . 1 2 2 3 Worker 1 | . . . . 1 Recycler 1 | . . 1 . . Watcher 2 | . . . . 2 Swarmer 13 | . . 2 9 2 Grunt 12 | . 2 . 5 5 Brawler 1 | . . . 1 . Sentry 2 | . . . 2 . Specialist 1 | . . . . 1 Best Kill Streak 7 | . 2 3 7 5 Combat Bots Only 7 | . 2 2 7 4 Max Kills in Single Turn 1 | . 1 1 1 1 Gunslinging . | . . . . . Exploded . | . . . . . Melee 1 | . 1 1 1 1 Uniques/NPCs Destroyed . | . . . . . Combat | -11 -10 -10 -9 -8 -------- Run | Yrd Mat Min Mat Mat Hostile Shots Fired 408 | . 49 35 123 201 Missed 112 | . 10 5 30 67 Damage Taken 3956 | . 517 253 916 2270 Core 937 | . 123 93 149 572 Absorbed by Shields . | . . . . . Redirected to Shielding 106 | . . . . 106 Ignored by Resistances 60 | . . . . 60 Core Remaining (%) 58 | 100 . 13 62 . Volleys Fired 26 | . 11 1 10 4 Largest 2 | . 2 1 1 1 Hottest 68 | . 60 60 60 68 Shots Fired 36 | . 22 1 9 4 Gun 25 | . 22 . . 3 Cannon 11 | . . 1 9 1 Launcher . | . . . . . Special . | . . . . . Kinetic 11 | . 11 . . . Thermal 25 | . 11 1 9 4 Explosive . | . . . . . Electromagnetic . | . . . . . Robot Hit Streak 5 | . 5 . 3 5 Robot Miss Streak 2 | . 2 1 1 . Penetration Max . | . . . . . Secondary Targets . | . . . . . Shots Hit Robots 82 | . 19 3 38 22 Core Hits 31 | . 4 2 11 14 Critical Kills . | . . . . . Critical Parts Destroyed 2 | . . . 2 . Critical Strikes 10 | . . . 5 5 Smash 2 | . . . 2 . Sever 8 | . . . 3 5 Melee Attacks 88 | . 5 6 50 27 Impact 23 | . 5 . 17 1 Slashing 65 | . . 6 33 26 Piercing . | . . . . . Sneak Attacks 1 | . . 1 . . Combat Hostiles . | . . . . . Follow-up Attacks 4 | . 1 . 3 . Damage Inflicted 2368 | . 383 122 1231 632 Guns 212 | . 171 . . 41 Cannons 183 | . . . 162 21 Explosions . | . . . . . Melee 1971 | . 212 122 1069 568 Ramming 2 | . . . . 2 Kinetic 93 | . 93 . . . Thermal 302 | . 78 . 162 62 Explosive . | . . . . . Electromagnetic . | . . . . . Impact 679 | . 212 . 423 44 Slashing 1292 | . . 122 646 524 Piercing . | . . . . . Highest Corruption 6 | . . . 6 5 Average Corruption 5 | . . . 5 5 Corruption Purged . | . . . . . Corruption Blocked . | . . . . . Effects 15 | . . . 14 1 Message Errors 4 | . . . 3 1 Matter Fused 5 | . . . 5 . Heat Flow Errors 2 | . . . 2 . Data Loss (minor) 1 | . . . 1 . Data Loss (major) 2 | . . . 2 . Weapon Failures 1 | . . . 1 . Overload Shots . | . . . . . Overflow Damage 227 | . . 30 195 2 Projectiles 51 | . . . 51 . Explosions . | . . . . . Melee 176 | . . 30 144 2 Knockbacks 4 | . . . 4 . Impact 2 | . . . 2 . Kinetic . | . . . . . Secondary 2 | . . . 2 . Self-Inflicted Damage . | . . . . . Shots . | . . . . . Rammed . | . . . . . Targets Rammed 1 | . . . . 1 Kicked 1 | . . . . 1 Crushed . | . . . . . Highest Temperature 234 | . 175 20 234 18 Average Temperature 79 | . 84 10 86 5 Received Heat Transfer 924 | . 321 . 216 387 Siege Activations . | . . . . . Robots Corrupted 2 | . . . 2 . Combat Hostiles 2 | . . . 2 . Parts Fried 2 | . . . 2 . Impact Corruptions 7 | . . . 7 . Robots Melted . | . . . . . Combat Hostiles . | . . . . . Parts Melted . | . . . . . Heat Transferred 582 | . 175 . 259 148 Parts Sabotaged . | . . . . . Parts Stolen . | . . . . . Parts Stripped . | . . . . . Power Chain Reactions . | . . . . . Alert | -11 -10 -10 -9 -8 ------- Run | Yrd Mat Min Mat Mat Peak Influence 363 | . 65 110 282 363 Initial 118 | . . 25 . 118 Average 112 | . 29 34 123 208 Maximum Alert Level 1 | . . . 1 1 Low Security (%) 74 | 100 100 100 65 52 Level 1 25 | . . . 34 47 Level 2 . | . . . . . Level 3 . | . . . . . Level 4 . | . . . . . Level 5 . | . . . . . High Security . | . . . . . Max Security . | . . . . . Squads Dispatched 7 | . . . 2 5 Investigation 2 | . . . 1 1 Extermination . | . . . . . Reinforcement 5 | . . . 1 4 Assault . | . . . . . Garrison . | . . . . . Intercept . | . . . . . Searches Triggered . | . . . . . Construction Impeded . | . . . . . Haulers Reinforced . | . . . . . Active Scanning Responses . | . . . . . Cargo Convoy Interrupts . | . . . . . Stealth | -11 -10 -10 -9 -8 --------- Run | Yrd Mat Min Mat Mat Distress Signals 5 | . . . 2 3 Communications Jammed . | . . . . . Distress Signals . | . . . . . Times Spotted 55 | . 3 4 25 23 Peak Tracking Total 12 | . 2 3 12 5 Tactical Retreats 9 | . . 1 2 6 Traps | -11 -10 -10 -9 -8 ------- Run | Yrd Mat Min Mat Mat Traps Triggered 5 | . . 1 4 . Indirectly . | . . . . . Trap Hack Attempts . | . . . . . Triggered . | . . . . . Disarmed . | . . . . . Reprogrammed . | . . . . . Reused . | . . . . . Traps Extracted . | . . . . . Installed . | . . . . . Triggered . | . . . . . Machines | -11 -10 -10 -9 -8 ---------- Run | Yrd Mat Min Mat Mat Machines Disabled 1 | . . 1 . . Max in Single Turn 1 | . . 1 . . Machines Repaired . | . . . . . Machines Dismantled . | . . . . . Machines Sabotaged . | . . . . . Overloaded Fab Kills . | . . . . . Hacking | -11 -10 -10 -9 -8 --------- Run | Yrd Mat Min Mat Mat Machines Accessed 6 | . . 1 4 1 Terminals 5 | . . . 4 1 Fabricators . | . . . . . Repair Stations . | . . . . . Recycling Units . | . . . . . Scanalyzers . | . . . . . Garrison Access . | . . . . . Total Hacks 15 | . . 1 11 3 Successful 8 | . . 1 5 2 Failed 7 | . . . 6 1 Catastrophic . | . . . . . Database Lockouts . | . . . . . Manual . | . . . . . Terminals 14 | . . . 11 3 Fabricators . | . . . . . Repair Stations . | . . . . . Recycling Units . | . . . . . Scanalyzers . | . . . . . Garrison Access . | . . . . . Terminal Hacks 8 | . . 1 5 2 Record 6 | . . . 4 2 Prototype ID Bank 1 | . . . 1 . Open Door 1 | . . 1 . . Fabricator Hacks . | . . . . . Repair Station Hacks . | . . . . . Recycling Unit Hacks . | . . . . . Scanalyzer . | . . . . . Garrison Access Hacks . | . . . . . Unauthorized Hacks . | . . . . . Terminals . | . . . . . Fabricators . | . . . . . Repair Stations . | . . . . . Recycling Units . | . . . . . Scanalyzers . | . . . . . Garrison Access . | . . . . . Data Cores Recovered . | . . . . . Used . | . . . . . Hacking Detections 5 | . . . 4 1 Full Trace Events 3 | . . . 2 1 Feedback Events . | . . . . . Feedback Blocked . | . . . . . Robot Schematics Acquired . | . . . . . Robots Built . | . . . . . Authchips . | . . . . . Time . | . . . . . Total Robot Build Rating . | . . . . . Part Schematics Acquired . | . . . . . Parts Built . | . . . . . Authchips . | . . . . . Time . | . . . . . Total Part Build Rating . | . . . . . Parts Repaired . | . . . . . Time . | . . . . . Parts Recycled . | . . . . . Recycled Matter . | . . . . . Retrieved Matter . | . . . . . Retrieved Components . | . . . . . Parts Scanalyzed . | . . . . . Part Schematics Acquired . | . . . . . Parts Damaged . | . . . . . Bothacking | -11 -10 -10 -9 -8 ------------ Run | Yrd Mat Min Mat Mat Used RIF Installer . | . . . . . Robots Hacked . | . . . . . Non-combat . | . . . . . Combat . | . . . . . Robot Hacks Applied . | . . . . . Relay Couplers Released . | . . . . . Fabnet Peak Effective % . | . . . . . Robots Rewired . | . . . . . Allies Hacked . | . . . . . Hacks Repelled . | . . . . . Allies | -11 -10 -10 -9 -8 -------- Run | Yrd Mat Min Mat Mat Total Allies . | . . . . . Largest Group . | . . . . . Highest-Rated Group . | . . . . . Highest-Rated Ally . | . . . . . Total Orders . | . . . . . Ally Attacks . | . . . . . Total Damage . | . . . . . Kills . | . . . . . Allies Corrupted . | . . . . . Allies Melted . | . . . . . Intel | -11 -10 -10 -9 -8 ------- Run | Yrd Mat Min Mat Mat Robot Analysis Total . | . . . . . Derelict Logs Recovered . | . . . . . Drone Launches . | . . . . . Drone Recoveries . | . . . . . Exploration | -11 -10 -10 -9 -8 ------------- Run | Yrd Mat Min Mat Mat Turns Passed 1852 | 57 214 417 644 520 Spaces Moved 902 | 58 136 234 278 196 Core 26 | 19 . . . 7 Treads 624 | . 39 234 278 73 Legs 116 | . . . . 116 Wheels 136 | 39 97 . . . Hover . | . . . . . Flight . | . . . . . Fastest Speed 50 | 50 80 160 160 120 Average Speed 154 | 70 104 160 160 197 Slowest Speed 550 | 80 160 160 160 550 Overloaded Moves . | . . . . . Propulsion Burnouts . | . . . . . Robots Hopped . | . . . . . Cave-ins Triggered . | . . . . . Exploration Rate (%) 20 | 3 17 39 31 13 Regions Visited 4 Branch Regions 1 Pre-discovered Areas . | . . . . . Known Exits Taken . | . . . . . Unknown Exits Taken 4 | 1 1 1 1 . Scrap Searched . | . . . . . Spaces Dug . | . . . . . Terrain Destroyed 2 | . . . 2 . Melee . | . . . . . Projectile 2 | . . . 2 . AOE . | . . . . . Terrain Rammed . | . . . . . Walls Destroyed . | . . . . . Machines Disabled . | . . . . . Actions | -11 -10 -10 -9 -8 --------- Run | Yrd Mat Min Mat Mat Total 1196 | 74 178 269 392 283 Wait 40 | 3 2 7 15 13 Move 898 | 57 135 233 277 196 Hop . | . . . . . Pick Up 62 | 9 12 9 17 15 Fast Attach 1 | 1 . . . . Attach 33 | 3 9 2 6 13 Detach . | . . . . . Swap 24 | . 1 3 13 7 Drop 28 | 1 4 8 8 7 Fire 26 | . 11 1 10 4 Melee 83 | . 4 6 46 27 Ram . | . . . . . Kick 1 | . . . . 1 Crush . | . . . . . Escape Stasis . | . . . . . Rewire . | . . . . . Trap . | . . . . . Miscellaneous . | . . . . . Route ------- -11/Scrapyard -10/Materials -10/Mines -9/Materials -8/Materials History --------- Turn | Location | Event 9 | -11/Scrapyard | Discovered new exit (range 16) 58 | -11/Scrapyard | Entered Materials 108 | -10/Materials | Discovered new exit (range 16) 195 | -10/Materials | Lost 4 parts (1p1n2w) 272 | -10/Materials | Entered Mines 284 | -10/Mines | Discovered new exit (range 8) 315 | -10/Mines | Build established: Mutant 417 | -10/Mines | Met a Derelict who couldn't figure out how to use a Trap Extractor 421 | -10/Mines | Core integrity fell below 50% 623 | -10/Mines | Core integrity fell below 20% 689 | -10/Mines | Entered Materials 689 | -9/Materials | Evolved 2 slots: Utility x2 1249 | -9/Materials | Destroyed 7 combat bots 1302 | -9/Materials | Discovered new exit (range 10) 1333 | -9/Materials | Entered another Materials area 1333 | -8/Materials | Evolved 2 slots: Propulsion x1, Utility x1 1515 | -8/Materials | Lost 5 parts (3n2u) 1798 | -8/Materials | Lost 3 parts (1p1n1u) 1823 | -8/Materials | Core integrity fell below 50% 1843 | -8/Materials | Core integrity fell below 20% 1853 | -8/Materials | Destroyed by H-61 Shepherd with Heavy Assault Cannon Last Messages --------------- 01831_ Hvy. Mace destroyed. 01832_ X-57 Shotgunner knocked back. 01837_ M-13 Machinist repairs X-57 Shotgunner. 01837_ Knocked back. 01837_ U-05 Engineer system corrupted by crushing effect. 01838_ U-05 Engineer system terminally corrupted. 01839_ M-13 Machinist repairs Nuclear Core. 01845_ Kicked H-61 Shepherd. 01846_ H-61 Shepherd calls for reinforcements. 01846_ ALERT: Hostile activity reported, dispatching reinforcements to area. 01846_ K-01 Serf collects debris. 01848_ V0 KGCVVUQG7E> =AJUNGSV D 01848_ Slug penetrates M-13 Machinist. 01848_ M-13 Machinist knocked back. 01849_ Acquired 8 matter. 01849_ Imp. Utility Shielding destroyed. 01850_ K-01 Serf collects debris. Map ----- +----------------------------------------------------+ | ????????????#####+##### ##????? | | ????????????## # ?????????????? | | ????????????## """ # ?????????????? | | ????????????## """ # ?????????????? | | ????????????## """ # ?????????????? | | ????????????## # ?????????????? | | ????????????## """ # ?????????????? | | ????????????## """ # ?????????????? | | ????????????## %!""" # ?????????????? | | ????????????## % ##?????????????? | | ????????????######+###########???????? | | ????????????######%#####"#"## ???????? | | ???????????????### ##### # ???????? | | ??????########### # ???????? | | ??????# # % + ???????? | | ??????# #[%##### # ???????? | | ??????# # *###### %## ???????? | | ??????# # ##?### ## ???????? | | ??????# # *##??## %##????????? | | ??????# """" # ##??## =##????????? | | ??????# """" + ##??## ##########? | | ??????# """" # ##??## ##########? | | ?################ ##??## " ##? | | ?# ###;#### #??## + %% ##? | | ?# *! mH #?### # [ ##? | | ?# !% x %@ #?### "####+#"### | | ?# ;k ;#### #?## ####=##### | | ?# %##?#######?## =%%*%!## | | ?# # #??######??## * * !# | | ?###########??????????## ##+### !# | | ??????????????????????####### ## !# | | ??????????????????????####### ## !# | | ???????????????????????????## ## !## | | ???????????????????????????## ###### | | ???????????????????????????## ###### | | ???????????????????????????## ##???? | | ???????????????????????????## ##???? | | ???????????????????????????#######???? | | ???????????????????????????#######???? | | ?????????????????????????????????????? | | | | | | | | | | | | | | | | | | | | | +----------------------------------------------------+ Best States ------------- Heat Dissipation 45 Energy Generation 14 Energy Capacity 540 Matter Stores 400 Matter Capacity 400 Sight Range 16 Terrain Scan Range 14 Terrain Scan Density 85 Armor Coverage 375 Resistance: TH 10 Utility Shielding 66 Evasion (%) 55 Targeting Accuracy 6 Recoil Reduction 3 Trap Extractor Capacity 6 Item Schematics ----------------- None Robot Schematics ------------------ None Fabricated ------------ Nothing Alien Tech Used ----------------- None Achievements -------------- None Challenges ------------ None Game ------ Seed ImpulseBoreActivator Manual? 0 Play Time 00:27:28 Cumulative 7.3 hours Start 2024.08.10 @ 11:45:23 End 2024.08.10 @ 12:10:40 Sessions 1 Manual Loads 0 Difficulty Rogue Special Mode None Game No. 12 Rogue 10 Adventurer 2 Explorer 0 Win Type - Total 0 Types 0/0/0/0/0/0/0/0/0 Lore% 8 Gallery% 16 Achievement% 14 Wizard Run 0 Options --------- Layout 2 ASCII 0 Keyboard 0 Movement Numpad Keybinds 0 Fullscreen 1 Font 32/SmallcapsGlow Map View 50x44 Zoom Use 0% Tactical HUD 1 Map Filters NONE Filters NONE Steam 1 RUN: 3259e388-425d-4f6a-a476-f8f1b552d2c3